bitfinex/quotes_ETHUSD_20241030
["timestamp","ask_amount","ask_price","bid_price","bid_amount"]
[1730305475517,3.72634,2683.6,2683.2,3.72685]
[1730305476215,3.72621,2683.7,2683.3,3.72672]
[1730305476516,6.72587,2684.0,2683.5,0.8144]
[1730305476719,6.72468352,2684.0,2683.5,4.994869]
[1730305476925,3.72598,2683.9,2683.5,0.8144]
[1730305477591,3.72598,2683.9,2683.5,4.5408]
[1730305477789,3.72579,2684.0,2683.5,4.5408]
[1730305478812,3.0,2684.0,2683.6,3.72622]
[1730305479115,6.72579,2684.0,2683.6,3.72622]
[1730305479481,6.72566,2684.1,2683.6,7.45248]
[1730305479703,6.72566,2684.1,2683.6,3.72622]
[1730305479909,6.72566,2684.1,2683.6,4.552934]
[1730305480427,3.72578,2684.0,2683.6,4.552934]
[1730305481183,3.72578,2684.0,2683.6,0.826714]
[1730305481533,7.45167,2684.0,2683.6,0.826714]
[1730305482029,3.72599,2683.9,2683.5,4.54084]
[1730305482733,3.72578,2684.0,2683.5,4.54084]
[1730305482734,3.0,2684.1,2683.5,0.8144]
[1730305483035,3.72613,2683.8,2683.5,0.8144]
[1730305483401,3.72587,2684.0,2683.5,0.8144]
[1730305483738,3.72593,2683.9,2683.5,0.8144]
[1730305484024,3.72593,2683.9,2683.5,4.54087]
[1730305485190,3.7261,2683.8,2683.5,0.8144]
[1730305485391,3.72594,2683.9,2683.5,0.8144]
[1730305485902,3.72579,2684.0,2683.6,3.72628]
[1730305486333,3.72579,2684.0,2683.5,0.8144]
[1730305486334,3.72598,2683.9,2683.5,0.8144]
[1730305487121,3.72598,2683.9,2683.5,4.54087]
[1730305487345,3.72608,2683.8,2683.5,0.8144]
[1730305487517,3.72575,2684.1,2683.5,0.8144]
[1730305487719,3.72592,2683.9,2683.5,0.8144]
[1730305488648,7.45195,2683.9,2683.5,0.8144]
[1730305488819,3.72592,2683.9,2683.5,0.8144]
[1730305489222,7.45193,2683.9,2683.5,0.8144]
[1730305489739,3.72592,2683.9,2683.5,0.8144]
[1730305490114,7.45192,2683.9,2683.5,0.8144]
[1730305490651,3.72608,2683.8,2683.5,0.8144]
[1730305491348,3.72592,2683.9,2683.5,0.8144]
[1730305491741,3.72611,2683.8,2683.5,0.8144]
[1730305492938,3.72611,2683.8,2683.1,3.72691]
[1730305492939,3.72638,2683.6,2683.2,4.53251]
[1730305493122,3.72638,2683.6,2683.2,0.8057]
[1730305493454,3.72635,2683.6,2683.2,4.53252]
[1730305493624,3.72611,2683.8,2683.4,0.8057]
[1730305493951,3.72611,2683.8,2683.5,0.453238]
[1730305494151,3.72611,2683.8,2683.4,4.53224]
[1730305494315,6.72582,2684.0,2683.4,4.53224]
[1730305494507,3.72579,2684.0,2683.6,3.72633]
[1730305496651,3.72579,2684.0,2683.5,3.72647]
[1730305497352,3.72597,2683.9,2683.5,3.72647]
[1730305498962,7.452,2683.9,2683.4,4.53229]
[1730305499158,1.0452,2683.9,2683.4,0.8057]
[1730305499378,3.72621,2683.7,2683.4,0.8057]
[1730305499725,3.72637,2683.6,2683.4,0.8057]
[1730305500560,3.72636,2683.6,2683.4,0.8057]
[1730305501522,3.72616,2683.8,2683.4,0.8057]
[1730305501727,3.72592,2683.9,2683.4,4.5322]
[1730305501922,3.72587,2684.0,2683.5,3.72642]
[1730305502972,3.72564,2684.1,2683.6,3.7263]
[1730305503285,3.0,2684.0,2683.6,3.7263]
[1730305503641,3.72593,2683.9,2683.4,0.8057]
[1730305503841,3.72593,2683.9,2683.5,4.179705]
[1730305505354,6.72584,2684.0,2683.7,0.7575]
[1730305505668,3.22511432,2684.4,2683.7,0.8320177]
[1730305505880,3.72491,2684.7,2684.3,0.8261]
[1730305506163,6.94954432,2685.0,2684.5,3.72502]
[1730305506370,3.72443,2685.0,2684.6,0.8261]
[1730305506946,3.72454,2684.9,2684.6,0.8261]
[1730305508384,3.72439,2685.0,2684.6,0.8261]
[1730305508683,3.72436,2685.1,2684.6,4.55104]
[1730305509153,3.72436,2685.1,2684.6,0.8261]
[1730305509359,0.449426,2685.1,2684.6,0.8261]
[1730305509546,3.58698278,2684.7,2684.0,4.54287]
[1730305509747,3.72491,2684.7,2684.1,3.72556]
[1730305510058,3.72496,2684.6,2684.1,3.72556]
[1730305510257,3.72496,2684.6,2684.0,0.89160719]
[1730305510460,3.72496,2684.6,2684.1,3.72564]
[1730305510751,3.72496,2684.6,2684.2,3.72548]
[1730305511156,3.72508,2684.5,2684.0,5.07904891]
[1730305511541,3.72508,2684.5,2684.0,4.5428]
[1730305512085,3.72508,2684.5,2684.0,0.89160716]
[1730305512257,3.72495,2684.6,2684.1,7.45113]
[1730305512591,7.31138278,2685.0,2684.5,3.72507]
[1730305512592,7.44899,2685.0,2684.5,3.72507]
[1730305512885,3.72456,2684.9,2684.4,3.72515]
[1730305513185,0.7885,2685.2,2684.3,0.8173]
[1730305513385,3.72476,2684.8,2684.3,4.54265]
[1730305513627,3.72454,2684.9,2684.4,3.7252]
[1730305513784,7.44862,2685.1,2684.5,3.72496]
[1730305513986,3.72442,2685.0,2684.6,0.7997]
[1730305514281,3.72454,2684.9,2684.6,0.7997]
[1730305514874,0.7727,2684.8,2684.4,0.0744967]
[1730305515190,0.7727,2684.8,2684.0,0.7997]
[1730305515191,3.72551,2684.2,2684.0,0.7997]
[1730305515349,3.72586,2684.0,2683.7,0.7997]
[1730305515783,3.72566,2684.1,2683.7,1.252313]
[1730305515987,3.72578,2684.0,2683.7,1.252313]
[1730305516290,0.8126,2683.8,2683.2,3.72679]
[1730305516593,7.45238,2683.7,2683.1,1.1608]
[1730305516778,3.72642,2683.6,2683.1,1.1608]
[1730305517437,3.72607,2683.8,2683.2,3.80132871]
[1730305517735,3.72626,2683.7,2683.4,0.8017]
[1730305518809,0.7538,2684.1,2683.4,0.8017]
[1730305519005,7.45167,2684.0,2683.4,4.5283]
[1730305519223,3.72592,2683.9,2683.5,3.72645]
[1730305519423,7.45167,2684.0,2683.5,3.72645]
[1730305519624,7.45167,2684.0,2683.5,4.60900816]
[1730305519822,3.72578,2684.0,2683.5,4.60900816]
[1730305520146,3.72594,2683.9,2683.5,0.88255816]
[1730305520346,3.72594,2683.9,2683.5,4.60902816]
[1730305520546,3.72594,2683.9,2683.5,0.88255816]
[1730305521519,3.72606,2683.8,2683.5,0.88255816]
[1730305521723,3.72622,2683.7,2683.4,0.8017]
[1730305521955,3.72606,2683.8,2683.4,0.8017]
[1730305522166,3.72629,2683.7,2683.4,0.8017]
[1730305523740,3.72606,2683.8,2683.4,0.8017]
[1730305524138,3.72627,2683.7,2683.4,0.8017]
[1730305525254,3.72606,2683.8,2683.4,4.52828]
[1730305525554,3.72595,2683.9,2683.4,4.981089]
[1730305525750,3.72595,2683.9,2683.4,8.707629]
[1730305525965,3.72595,2683.9,2683.4,4.981089]
[1730305526171,3.72595,2683.9,2683.4,5.05561252]
[1730305526930,3.72595,2683.9,2683.5,0.86425953]
[1730305527142,3.0,2684.0,2683.5,4.59069953]
[1730305527342,3.72531,2684.4,2683.6,4.37018278]
[1730305527635,3.72509,2684.5,2683.9,3.72584]
[1730305527842,3.72501,2684.6,2684.1,3.72557]
[1730305528062,3.72501,2684.6,2684.1,3.80007712]
[1730305528264,3.72492,2684.7,2684.1,0.07450712]
[1730305528469,3.72492,2684.7,2684.0,4.50885]
[1730305528706,3.72494,2684.6,2684.1,0.450885]
[1730305529147,3.72492,2684.7,2684.1,0.450885]
[1730305529552,3.72492,2684.7,2684.1,4.25100971]
[1730305529751,3.7251,2684.5,2684.1,4.25100971]
[1730305529952,3.7251,2684.5,2684.2,0.87598597]
[1730305530795,3.72483,2684.7,2684.3,4.49019]
[1730305530952,3.72483,2684.7,2684.3,4.56468966]
[1730305531594,3.72468,2684.8,2684.3,8.28995966]
[1730305531767,3.72468,2684.8,2684.4,0.91659456]
[1730305532157,3.72484,2684.7,2684.4,0.91659456]
[1730305532959,3.72468,2684.8,2684.4,0.91659456]
[1730305533160,7.44948,2684.8,2684.4,0.91659456]
[1730305533497,3.72468,2684.8,2684.4,4.64180456]
[1730305533717,3.72468,2684.8,2684.5,0.56784117]
[1730305534266,3.72483,2684.7,2684.3,4.49017]
[1730305536109,3.72455,2684.9,2684.4,3.79966976]
[1730305536523,7.44918,2684.9,2684.4,3.79966976]
[1730305537217,3.72455,2684.9,2684.4,3.79966976]
[1730305537440,3.72455,2684.9,2684.4,0.07449976]
[1730305537621,3.72474,2684.8,2684.4,4.27114674]
[1730305538928,4.54128,2684.6,2684.3,0.1496]
[1730305539162,3.72522,2684.4,2684.3,0.1496]
[1730305539919,4.54152,2684.4,2684.3,0.1496]
[1730305540377,5.09152,2684.4,2684.3,0.1496]
[1730305540659,5.973181,2684.4,2684.3,0.1496]
[1730305541160,8.973181,2684.4,2684.3,0.1496]
[1730305560544,8.156881,2684.4,2684.3,0.1496]
[1730305560703,8.937681,2684.4,2684.3,0.1496]
[1730305565562,6.72522,2684.4,2684.3,0.1496]
[1730305567470,3.72522,2684.4,2684.3,0.1496]
[1730305567669,3.72522,2684.4,2684.3,0.9729]
[1730305568077,7.45009,2684.6,2684.3,0.9729]
[1730305568233,3.72503,2684.6,2684.3,0.9729]
[1730305568433,3.72508,2684.5,2684.3,0.9729]
[1730305570130,3.72492,2684.7,2684.3,0.9729]
[1730305570568,3.72476,2684.8,2684.3,3.87489]
[1730305570754,3.7249,2684.7,2684.4,1.210789]
[1730305571668,0.7504,2685.2,2684.4,1.210789]
[1730305571874,3.72482,2684.7,2684.4,1.210789]
[1730305573063,3.72506,2684.6,2684.4,1.210789]
[1730305573339,6.72522,2684.4,2684.3,0.1496]
[1730305574022,8.06782,2684.4,2684.3,0.1496]
[1730305574297,7.27522,2684.4,2684.3,0.1496]
[1730305574938,6.72522,2684.4,2684.3,0.1496]
[1730305581638,3.0,2684.4,2684.3,0.1496]
[1730305581844,3.7244,2685.0,2684.4,0.7818]
[1730305582001,3.72481,2684.7,2684.4,0.7818]
[1730305582939,3.72488,2684.7,2684.4,0.7818]
[1730305583751,3.72469,2684.8,2684.4,0.7818]
[1730305583941,3.72481,2684.7,2684.5,0.47312587]
[1730305584117,3.72481,2684.7,2684.4,0.7818]
[1730305584642,3.72461,2684.9,2684.5,0.8167]
[1730305584956,3.72488,2684.7,2684.5,0.8167]
[1730305585239,3.72494,2684.6,2684.5,0.8167]
[1730305585600,3.72494,2684.6,2684.5,1.1894]
[1730305585800,3.72494,2684.6,2684.3,0.9523]
[1730305586002,3.72517,2684.5,2684.3,0.9523]
[1730305586445,3.72522,2684.4,2684.3,0.9523]
[1730305586596,3.72522,2684.4,2684.3,0.1496]
[1730305586597,6.72522,2684.4,2684.3,0.1496]
[1730305586798,7.470259,2684.4,2684.3,0.1496]
[1730305587235,6.72522,2684.4,2684.3,0.1496]
[1730305591656,7.45037,2684.5,2684.3,0.1496]
[1730305592508,3.72517,2684.5,2684.4,0.8069]
[1730305596479,3.72522,2684.4,2684.3,0.1496]
[1730305596628,8.774759,2684.4,2684.3,0.1496]
[1730305596831,3.72682,2683.3,2682.9,0.8135]
[1730305597031,3.72664,2683.4,2682.9,0.8135]
[1730305597385,3.72644,2683.6,2683.1,3.72699]
[1730305597531,3.72632,2683.7,2683.3,0.8135]
[1730305597733,3.72632,2683.7,2683.3,4.61478364]
[1730305597734,3.72621,2683.7,2683.3,4.61478364]
[1730305597932,0.784,2684.3,2683.5,0.7859]
[1730305598245,0.784,2684.3,2683.6,0.07451822]
[1730305598246,3.72578,2684.0,2683.6,0.07451822]
[1730305598433,3.72578,2684.0,2683.6,0.90585204]
[1730305598636,3.72559,2684.2,2683.6,0.90585204]
[1730305598932,3.72571,2684.1,2683.6,3.80076822]
[1730305599184,3.72559,2684.2,2683.7,0.7859]
[1730305599353,3.72588,2684.0,2683.7,0.7859]
[1730305600269,3.72592,2683.9,2683.7,0.7859]
[1730305600991,3.72588,2684.0,2683.7,0.7859]
[1730305601550,3.7257,2684.1,2683.7,0.7859]
[1730305601748,3.0,2684.2,2683.7,5.34333292]
[1730305601949,3.0,2684.2,2683.9,0.7859]
[1730305602178,3.0,2684.2,2683.9,4.51174]
[1730305602492,0.8275,2684.7,2683.7,0.83130292]
[1730305602493,3.72493,2684.7,2684.1,3.72564]
[1730305602675,3.7249,2684.7,2684.2,4.865954]
[1730305603046,3.72495,2684.6,2684.2,4.865954]
[1730305603247,3.72453,2684.9,2684.4,0.79]
[1730305603494,3.72453,2684.9,2684.4,4.51515]
[1730305603675,3.7245,2685.0,2684.5,4.5564682]
[1730305603848,0.7953,2685.4,2684.5,4.5564682]
[1730305604084,3.72436,2685.1,2684.5,8.35596081]
[1730305604400,3.72449,2685.0,2684.5,0.8314882]
[1730305604574,7.449,2685.0,2684.5,0.8314882]
[1730305604778,7.449,2685.0,2684.6,0.53466982]
[1730305605578,3.72453,2684.9,2684.6,0.53466982]
[1730305610185,3.72364,2685.6,2684.9,3.72446]
[1730305610420,3.72394,2685.4,2685.0,0.8211]
[1730305610635,3.72356,2685.6,2685.0,0.8211]
[1730305610921,7.44897,2685.0,2684.8,0.8211]
[1730305611545,3.72447,2685.0,2684.8,0.8211]
[1730305612070,3.58698278,2685.3,2684.8,0.8211]
[1730305612225,3.448246,2685.5,2684.8,0.8211]
[1730305612423,3.72405,2685.3,2684.8,0.8211]
[1730305612731,3.72423,2685.2,2684.8,0.8211]
[1730305613123,6.7238,2685.5,2684.8,1.28313872]
[1730305613319,3.72396,2685.4,2684.8,5.00772872]
[1730305613566,3.72396,2685.4,2684.9,3.72446]
[1730305613765,3.72384,2685.4,2684.9,3.72446]
[1730305614067,6.7238,2685.5,2685.0,0.50075987]
[1730305614274,7.44761,2685.5,2685.0,0.50075987]
[1730305614566,3.72387,2685.4,2685.0,0.50075987]
[1730305614753,3.7242,2685.2,2684.8,0.8211]
[1730305615468,3.58698278,2685.6,2684.8,0.8211]
[1730305615646,3.72418,2685.2,2684.8,0.8211]
[1730305616076,3.72418,2685.2,2684.8,4.54575]
[1730305616246,3.72388,2685.4,2684.8,9.097377]
[1730305616440,3.72388,2685.4,2684.8,5.372727]
[1730305616685,3.72388,2685.4,2684.9,3.7245]
[1730305616846,7.44782,2685.4,2684.9,3.7245]
[1730305617048,3.72397,2685.3,2684.8,5.372787]
[1730305618095,3.72397,2685.3,2684.8,1.648157]
[1730305618387,3.72397,2685.3,2684.8,0.8211]
[1730305618559,7.44807,2685.3,2684.8,4.54575]
[1730305619006,3.72412,2685.2,2684.8,4.54575]
[1730305619859,3.72426,2685.1,2684.8,0.8211]
[1730305620482,3.72484,2684.7,2684.5,0.7654]
[1730305620688,3.72471,2684.8,2684.5,0.7654]
[1730305620898,3.72493,2684.7,2684.5,0.7654]
[1730305622360,3.7245,2685.0,2684.5,0.7654]
[1730305622687,3.7245,2685.0,2684.5,4.94698494]
[1730305622887,3.72454,2684.9,2684.5,5.02147849]
[1730305623073,3.72454,2684.9,2684.5,0.83989355]
[1730305623277,3.72454,2684.9,2684.5,0.7654]
[1730305623575,3.0,2685.2,2684.5,0.7654]
[1730305623748,3.72482,2684.7,2684.5,0.7654]
[1730305626484,7.44927,2684.9,2684.5,0.7654]
[1730305626698,3.72467,2684.8,2684.5,0.7654]
[1730305626900,3.72445,2685.0,2684.5,4.51688]
[1730305627105,6.72422,2685.2,2684.7,0.7918]
[1730305627106,3.72426,2685.1,2684.7,0.7918]
[1730305627396,3.72426,2685.1,2684.7,4.5166]
[1730305627598,3.72426,2685.1,2684.7,0.7918]
[1730305628366,3.72439,2685.0,2684.7,0.7918]
[1730305630296,3.72453,2684.9,2684.4,0.7734]
[1730305630471,0.744865,2685.0,2684.4,0.7734]
[1730305630472,3.72501,2684.6,2684.4,0.7734]
[1730305631518,3.72508,2684.5,2684.4,0.7734]
[1730305631812,3.72508,2684.5,2684.2,0.8015]
[1730305632013,3.72496,2684.6,2684.2,0.8015]
[1730305632222,3.72496,2684.6,2684.2,4.60150153]
[1730305632530,3.72475,2684.8,2684.4,3.72521]
[1730305633102,3.72487,2684.7,2684.3,0.7824]
[1730305633405,3.72502,2684.6,2684.3,0.7824]
[1730305636583,3.7251,2684.5,2684.3,0.7824]
[1730305637069,3.72453,2684.9,2684.3,0.7824]
[1730305637221,3.72511,2684.5,2684.3,0.7824]
[1730305638281,3.72482,2684.7,2684.3,0.7824]
[1730305638487,3.72467,2684.8,2684.3,0.7824]
[1730305638785,3.72487,2684.7,2684.3,0.7824]
[1730305639469,3.72504,2684.6,2684.3,0.7824]
[1730305639670,3.72512,2684.5,2684.3,0.7824]
[1730305640066,3.72492,2684.7,2684.3,0.7824]
[1730305641680,3.72551,2684.2,2684.0,0.8265]
[1730305641885,3.72564,2684.1,2683.8,0.8265]
[1730305642197,3.72579,2684.0,2683.8,0.8265]
[1730305642374,3.72551,2684.2,2683.8,0.8265]
[1730305642576,3.72566,2684.1,2683.8,0.8265]
[1730305643597,3.72585,2684.0,2683.8,0.8265]
[1730305643895,3.72561,2684.2,2683.8,0.8265]
[1730305644393,3.72565,2684.1,2683.8,0.8265]
[1730305644846,3.7258,2684.0,2683.8,0.8265]
[1730305645893,3.72592,2683.9,2683.3,0.7587]
[1730305646090,3.72633,2683.7,2683.3,4.48545]
[1730305646391,3.72601,2683.9,2683.4,3.72655]
[1730305646590,3.72592,2683.9,2683.4,7.45309]
[1730305646955,3.72613,2683.8,2683.3,4.48543]
[1730305647783,3.72613,2683.8,2683.4,3.72661]
[1730305650808,3.72623,2683.7,2683.3,0.7587]
[1730305650969,3.72613,2683.8,2683.3,4.55984513]
[1730305651163,3.72585,2684.0,2683.5,3.72643]
[1730305651395,3.72585,2684.0,2683.6,0.7775]
[1730305651699,3.72593,2683.9,2683.6,0.7775]
[1730305652911,3.7684,2684.2,2683.6,0.7775]
[1730305652912,3.72619,2683.7,2683.6,0.7775]
[1730305653117,7.49396,2684.2,2683.6,0.7775]
[1730305653118,3.72606,2683.8,2683.6,0.7775]
[1730305654475,3.72574,2684.1,2683.6,0.7775]
[1730305654675,3.72538,2684.3,2683.8,4.48209]
[1730305655111,3.72549,2684.3,2683.8,4.48209]
[1730305655583,3.72561,2684.2,2683.8,0.7561]
[1730305655925,7.45174,2684.0,2683.8,0.7561]
[1730305656224,7.45174,2684.0,2683.6,0.7935]
[1730305656225,3.72592,2683.9,2683.6,0.7935]
[1730305656525,3.72592,2683.9,2683.5,3.72644]
[1730305656526,3.72607,2683.8,2683.5,0.7935]
[1730305656996,3.72589,2684.0,2683.5,0.7935]
[1730305656997,3.72592,2683.9,2683.5,0.7935]
[1730305657198,0.7816,2684.2,2683.5,4.97196]
[1730305657526,6.72544,2684.3,2683.8,0.7935]
[1730305657726,6.72544,2684.3,2683.8,4.51956]
[1730305657727,3.72552,2684.2,2683.8,4.51956]
[1730305658384,4.5068,2684.5,2683.8,4.51956]
[1730305658385,3.0,2684.4,2683.8,4.51956]
[1730305658590,3.72542,2684.3,2683.8,4.51956]
[1730305658804,3.72542,2684.3,2683.8,5.344129]
[1730305658999,3.72542,2684.3,2683.9,3.72591]
[1730305659328,3.72542,2684.3,2683.8,5.344049]
[1730305659689,4.50678,2684.5,2683.8,5.344049]
[1730305660026,3.7255,2684.2,2684.0,0.7928]
[1730305660416,3.72538,2684.3,2684.0,0.7928]
[1730305660825,3.7252,2684.5,2684.0,0.7928]
[1730305660992,3.7252,2684.5,2684.1,3.72562]
[1730305661197,7.45036,2684.5,2684.0,0.7928]
[1730305661392,3.72516,2684.5,2684.0,4.51856]
[1730305661610,6.72491,2684.7,2684.1,3.72558]
[1730305661611,3.72491,2684.7,2684.1,3.72558]
[1730305661806,3.7251,2684.5,2684.1,3.72558]
[1730305662142,3.72491,2684.7,2684.3,0.7928]
[1730305662294,3.72491,2684.7,2684.3,4.5181]
[1730305662501,3.72461,2684.9,2684.5,0.768]
[1730305662839,3.72378,2685.5,2684.9,3.72442]
[1730305663011,3.72384,2685.4,2684.9,3.72442]
[1730305663421,3.72358,2685.6,2685.1,0.8158]
[1730305663622,3.72372,2685.5,2685.1,4.54004]
[1730305664039,3.72342,2685.7,2685.1,0.8158]
[1730305664201,3.72342,2685.7,2685.2,3.72405]
[1730305664403,3.72329,2685.8,2685.2,3.72402]
[1730305664602,0.7748,2686.1,2685.4,0.8158]
[1730305664812,3.72366,2685.6,2685.4,0.8158]
[1730305666015,3.7235,2685.7,2685.4,0.8158]
[1730305666337,3.72358,2685.6,2685.4,0.8158]
[1730305666498,3.7235,2685.7,2685.4,0.8158]
[1730305666703,3.7235,2685.7,2685.1,0.761]
[1730305666704,3.7237,2685.5,2685.1,0.761]
[1730305667152,3.72351,2685.7,2685.1,0.761]
[1730305667296,3.72367,2685.6,2685.1,0.761]
[1730305667498,3.72367,2685.6,2685.2,3.7241]
[1730305668168,3.72367,2685.6,2685.1,0.83547594]
[1730305668344,3.72367,2685.6,2685.1,1.21697459]
[1730305668548,3.72367,2685.6,2685.1,5.01564054]
[1730305668748,7.44732,2685.6,2685.1,1.29145054]
[1730305668936,7.44732,2685.6,2685.1,1.21697459]
[1730305669268,3.72365,2685.6,2685.1,1.21697459]
[1730305669471,7.44733,2685.6,2685.1,4.94117459]
[1730305669770,3.72365,2685.6,2685.1,4.94117459]
[1730305670070,3.72365,2685.6,2685.1,5.01565056]
[1730305670270,7.4473,2685.6,2685.1,4.94117459]
[1730305670680,3.72365,2685.6,2685.1,4.94117459]
[1730305670833,3.7237,2685.5,2685.1,4.94117459]
[1730305671277,3.72365,2685.6,2685.2,0.50156505]
[1730305671440,3.72338,2685.8,2685.3,4.5556]
[1730305672741,7.44679,2685.8,2685.3,4.5556]
[1730305672977,3.72338,2685.8,2685.3,4.5556]
[1730305673137,3.72338,2685.8,2685.3,8.2795]
[1730305673496,3.7231,2686.0,2685.4,0.07446853]
[1730305673654,3.72283,2686.2,2685.6,3.72348]
[1730305673983,3.72294,2686.1,2685.8,0.8317]
[1730305674795,3.72301,2686.0,2685.8,0.8317]
[1730305675868,3.72284,2686.2,2685.8,0.8317]
[1730305676057,3.72287,2686.1,2685.8,0.8317]
[1730305678876,3.72301,2686.0,2685.8,0.8317]
[1730305679049,3.58698278,2686.1,2685.4,0.8035]
[1730305679253,3.72341,2685.8,2685.4,0.8035]
[1730305679458,0.8095,2686.0,2685.4,0.8035]
[1730305679778,3.72349,2685.7,2685.4,0.8035]
[1730305679997,7.44701,2685.7,2685.4,0.8035]
[1730305680177,3.72349,2685.7,2685.4,0.8035]
[1730305680381,0.8095,2686.0,2685.4,0.8035]
[1730305680547,3.7237,2685.5,2685.4,0.8035]
[1730305680744,3.72344,2685.7,2685.4,0.8035]
[1730305682046,3.72421,2685.2,2685.0,0.7619]
[1730305682383,3.58698278,2685.5,2684.4,0.7619]
[1730305682687,3.72411,2685.2,2684.6,3.72486]
[1730305682862,3.72393,2685.4,2684.6,3.72486]
[1730305682863,3.72393,2685.4,2684.7,0.83638558]
[1730305683057,3.72399,2685.3,2684.8,7.90537456]
[1730305683250,3.72399,2685.3,2684.8,4.18072456]
[1730305683449,0.7548,2685.6,2684.8,4.18072456]
[1730305683644,3.72402,2685.3,2684.8,4.18072456]
[1730305683986,3.72412,2685.2,2684.8,0.45612456]
[1730305684548,3.72461,2684.9,2684.7,0.7619]
[1730305685891,3.72478,2684.8,2684.4,0.7658]
[1730305686805,3.72478,2684.8,2684.4,4.56551531]
[1730305687019,3.72478,2684.8,2684.4,5.43979764]
[1730305687164,3.72453,2684.9,2684.4,5.43979764]
[1730305687363,3.72472,2684.8,2684.4,1.71457764]
[1730305687600,7.44917,2684.9,2684.4,0.7658]
[1730305687807,7.44916,2684.9,2684.4,4.49099]
[1730305688024,7.44916,2684.9,2684.4,4.56548532]
[1730305688463,3.72453,2684.9,2684.4,4.56548532]
[1730305688667,3.72453,2684.9,2684.4,5.4050563]
[1730305688866,7.44917,2684.9,2684.4,5.4050563]
[1730305689107,3.72453,2684.9,2684.4,5.4050563]
[1730305689312,7.44919,2684.9,2684.4,5.4050563]
[1730305689612,3.72453,2684.9,2684.4,5.4050563]
[1730305689809,3.72474,2684.8,2684.4,1.6799163]
[1730305690103,3.72474,2684.8,2684.4,0.7658]
[1730305691120,3.72474,2684.8,2684.4,0.84029535]
[1730305691278,3.72454,2684.9,2684.4,4.56550535]
[1730305691477,3.72467,2684.8,2684.4,4.56550535]
[1730305693720,3.72467,2684.8,2684.4,0.7658]
[1730305694020,3.72467,2684.8,2684.0,7.31267278]
[1730305694021,3.7253,2684.4,2684.0,0.7517]
[1730305694371,3.95944978,2684.8,2684.0,0.7517]
[1730305694372,3.72489,2684.7,2684.1,0.07450446]
[1730305694527,3.72489,2684.7,2684.3,0.7517]
[1730305695376,3.72498,2684.6,2684.3,0.7517]
[1730305699528,3.72489,2684.7,2684.3,0.7517]
[1730305699702,3.72509,2684.5,2684.3,0.7517]
[1730305699902,3.72495,2684.6,2684.3,0.7517]
[1730305700441,3.72489,2684.7,2684.3,0.7517]
[1730305700654,3.72515,2684.5,2684.3,0.7517]
[1730305700940,3.72496,2684.6,2684.3,0.7517]
[1730305701297,3.72496,2684.6,2683.9,3.72582]
[1730305701298,3.72496,2684.6,2684.0,3.72577]
[1730305701502,3.72544,2684.3,2684.1,0.8295]
[1730305701742,3.72565,2684.1,2683.8,0.8295]
[1730305702116,3.72544,2684.3,2683.8,0.8295]
[1730305702313,3.72552,2684.2,2683.8,0.8295]
[1730305702507,3.72579,2684.0,2683.8,0.8295]
[1730305702712,3.72592,2683.9,2683.8,0.8295]
[1730305703047,3.72579,2684.0,2683.8,0.8295]
[1730305703617,3.72584,2684.0,2683.5,0.8295]
[1730305703824,3.72618,2683.8,2683.5,0.8295]
[1730305704051,3.726,2683.9,2683.5,0.8295]
[1730305704720,3.72589,2684.0,2683.5,0.8295]
[1730305704721,3.72606,2683.8,2683.5,0.8295]
[1730305705245,3.72617,2683.8,2683.5,0.8295]
[1730305705411,3.72626,2683.7,2683.5,0.8295]
[1730305706028,3.72626,2683.7,2683.3,4.48855]
[1730305706246,3.72626,2683.7,2683.3,1.583343]
[1730305706438,7.45226,2683.8,2683.3,5.310023]
[1730305706666,3.72607,2683.8,2683.3,1.583343]
[1730305706838,0.7922,2684.1,2683.3,1.65786878]
[1730305707039,3.72574,2684.1,2683.7,0.7618]
[1730305707253,3.72552,2684.2,2683.7,4.48799]
[1730305707472,3.72564,2684.1,2683.7,4.48799]
[1730305707769,3.72552,2684.2,2683.8,0.4562508]
[1730305708331,7.45113,2684.2,2683.8,0.4562508]
[1730305708769,3.72552,2684.2,2683.8,0.4562508]
[1730305709775,7.4511,2684.2,2683.8,0.4562508]
[1730305711175,3.0,2684.4,2683.8,4.25680661]
[1730305711176,3.72536,2684.3,2683.8,4.25680661]
[1730305711338,6.72533,2684.4,2684.0,0.7751]
[1730305711339,6.7253,2684.4,2684.0,0.7751]
[1730305711667,3.72516,2684.5,2684.0,4.50086]
[1730305712070,7.45032,2684.5,2684.0,4.50086]
[1730305712272,3.72524,2684.4,2684.1,0.91012397]
[1730305712936,3.7251,2684.5,2684.0,4.50085]
[1730305713580,3.7251,2684.5,2684.1,3.72564]
[1730305713883,3.72495,2684.6,2684.1,7.45117]
[1730305714085,3.0,2685.0,2684.4,0.8322]
[1730305714086,3.72464,2684.9,2684.4,0.8322]
[1730305714396,3.72476,2684.8,2684.4,0.8322]
[1730305716478,3.0,2685.0,2684.4,0.8322]
[1730305716682,6.72447,2685.0,2684.5,3.72501]
[1730305716997,7.52251,2685.2,2684.7,4.48669]
[1730305717147,3.72433,2685.1,2684.7,0.7619]
[1730305717649,3.72432,2685.1,2684.7,0.7619]
[1730305718703,3.72461,2684.9,2684.7,0.7619]
[1730305719066,7.44924,2684.9,2684.7,0.7619]
[1730305719700,3.72473,2684.8,2684.4,0.7554]
[1730305720270,3.72494,2684.7,2684.4,0.7554]
[1730305720470,3.72473,2684.8,2684.4,0.7554]
[1730305720676,7.44951,2684.8,2684.4,0.7554]
[1730305720882,3.72482,2684.7,2684.4,0.7554]